Workbook

Sheet TC3 (GMIM) MUESTREO
C3: MUESTREO
C5: Técnicas Cuantitativas 3
C6: Muestreo aleatorio simple.
C7: Muestreo aleatorio estratificado.
C8: Muestreo con información auxiliar.
C9: Muestreo sistemático.
C10: Muestreo por conglomerados.
C11: Estimación del tamaño de la población.
C13: Grado en Marketing e Investigación de Mercados. Universidad de Granada.
C15: © TC3. José Alberto Hermoso Gutiérrez

Sheet Muestreo Aleatorio Simple
A1: © TC3. José Alberto Hermoso Gutiérrez
C2: =IF(OR(B6=0,B12=0,B19=0,B25=0,B31=0),"COMPLETE EL FORMULARIO","") ->  | E2: =IF(AND(B12=3,B19=1),"Sin datos muestrales no es posible hacer una estimación",IF(G10>0,"Escriba sólo los datos solicitados","")) ->  | G2: check | H2: Datos
E3: =IF(B6=1,"Tamaño de la población:","") -> Tamaño de la población: | F3: 2000 | G3: =IF(OR(AND(E3="",F3<>""),AND(E3<>"",F3="")),1,0) -> 0 | H3: coef. corrector= | I3: =IF(G11=0,IF(B19=1,IF(B31=1,"*Nivel de confianza 90% (z=1,645)",IF(B31=2,"*Nivel de confianza 95% (z=1,96)",IF(B31=3,"*Nivel de confianza 95% (z=2)",IF(B31=4,"*Nivel de confianza 99% (z=2,576)","")))),""),"") ->  | J3: =IF(G11=0,IF(B19=1,IF(B25=1,"Media",IF(B25=2,"Proporción","")),""),"") ->  | K3: =IF(G11=0,IF(AND(B19=1,B6=1),"Total",""),"") -> 
E4: =IF(AND(B12=2,B19=1),"Tamaño de la muestra:","") ->  | G4: =IF(OR(AND(E4="",F4<>""),AND(E4<>"",F4="")),1,0) -> 0 | H4: =IF(B6=2,1,IF(AND(B6=1,F3<>"",F10<>""),(F3-F10)/F3,"")) ->  | I4: =IF(G11=0,IF(B19=1,"Estimación:",""),"") ->  | J4: =IF(G11=0,IF(B19=1,IF(F11="","",F11),""),"") ->  | K4: =IF(G11=0,IF(OR(J4="",F3=""),"",F3*J4),"") -> 
E5: =IF(AND(B12=2,B19=1,B25=1),"Media muestral:",IF(AND(B12=2,B25=2),"Proporción muestral:","")) ->  | G5: =IF(OR(AND(E5="",F5<>""),AND(E5<>"",F5="")),1,0) -> 0 | I5: =IF(G11=0,IF(B19=1,"Varianza del estimador:",""),"") ->  | J5: =IF(G11=0,IF(B19=1,IF(OR(F10="",F12="",H4=""),"",F12*H4/F10),""),"") ->  | K5: =IF(G11=0,IF(OR(J5="",F3=""),"",F3*F3*J5),"") -> 
B6: 1 | E6: =IF(AND(B12=2,B25=1),"Cuasivarianza muestral:","") -> Cuasivarianza muestral: | F6: 36854 | G6: =IF(OR(AND(E6="",F6<>""),AND(E6<>"",F6="")),1,0) -> 0 | H6: B media= | I6: =IF(G11=0,IF(B19=1,"*Cota del error de estimación:",""),"") ->  | J6: =IF(G11=0,IF(OR($D$33="",J5=""),"",$D$33*SQRT(J5)),"") ->  | K6: =IF(G11=0,IF(OR(K5="",$D$33=""),"",$D$33*SQRT(K5)),"") -> 
E7: =IF(AND(B12=3,B19=2,B25=1),"Rango de variación de la variable:","") ->  | G7: =IF(OR(AND(E7="",F7<>""),AND(E7<>"",F7="")),1,0) -> 0 | H7: =IF(AND(F8<>"",F9=""),F8,IF(AND(F8="",F9<>"",F3<>""),F9/F3,IF(AND(F8<>"",F9<>"",F3<>""),MIN(F8,(F9/F3)),""))) -> 50 | I7: =IF(G11=0,IF(B19=1,"*Intervalo de confianza (extremo inferior):",""),"") ->  | J7: =IF(G11=0,IF(OR(J4="",J6=""),"",J4-J6),"") ->  | K7: =IF(G11=0,IF(OR(K4="",K6=""),"",K4-K6),"") -> 
E8: =IF(AND(B19=2,B25=2),"Cota del error de estimación para la proporción:",IF(AND(B19=2,B25=1),"Cota del error de estimación para la media:","")) -> Cota del error de estimación para la media: | G8: =IF(OR(AND(E8="",F8<>""),AND(E8<>"",F8="",F9="")),1,0) -> 0 | H8: D para hallar n= | I8: =IF(G11=0,IF(B19=1,"*Intervalo de confianza (extremo superior):",""),"") ->  | J8: =IF(G11=0,IF(OR(J4="",J6=""),"",J4+J6),"") ->  | K8: =IF(G11=0,IF(OR(K4="",K6=""),"",K4+K6),"") -> 
E9: =IF(AND(B19=2,B6=1),"y/o Cota del error de estimación para el total:","") -> y/o Cota del error de estimación para el total: | F9: 100000 | G9: =IF(OR(AND(E9="",F9<>""),AND(E9<>"",F9="",F8="")),1,0) -> 0 | H9: =IF(OR(H7="",$D$33=""),"",(H7/$D$33)^2) -> 923.8643398 | I9: =IF(G11=0,IF(B19=2,IF(B31=1,"Nivel de confianza 90% (z=1,645)",IF(B31=2,"Nivel de confianza 95% (z=1,96)",IF(B31=3,"Nivel de confianza 95% (z=2)",IF(B31=4,"Nivel de confianza 99% (z=2,576)","")))),""),"") -> Nivel de confianza 90% (z=1,645) | J9: =IF(G11=0,IF(J10="","",1),"") -> 1
F10: =IF(B12=1,COUNT(F14:F1013),IF(AND(B12=2,F4<>""),F4,"")) ->  | G10: =SUM(G3:G9) -> 0 | H10: ←n tam. muestra | I10: =IF(G11=0,IF(B19=2,"Tamaño muestral para la cota de error:",""),"") -> Tamaño muestral para la cota de error: | J10: =IF(G11=0,IF(AND(B6=2,B19=2,F12<>"",H9<>"",OR(B25=1,AND(B25=2,B12=3))),F12/H9,IF(AND(B6=2,B19=2,B25=2,F11<>"",H9<>""),F11*(1-F11)/H9,IF(AND(B6=1,B19=2,F12<>"",F3<>"",H9<>"",OR(B25=1,AND(B25=2,B12=3))),F3*F12/(((F3-1)*H9)+F12),IF(AND(B6=1,B19=2,B25=2,F11<>"",F3<>"",H9<>""),F3*F11*(1-F11)/(((F3-1)*H9)+(F11*(1-F11))),"")))),"") -> 39.13022858
D11: =IF(AND(B12=3,B19=1),1,0) -> 0 | F11: =IF(B12=1,AVERAGE(F14:F1013),IF(AND(B12=2,F5<>""),F5,"")) ->  | G11: =SUM(D11,D13,G12,G10) -> 0 | H11: ←media muestra
B12: 2 | E12: =IF(G12>0,"Complete los datos de la muestra","") ->  | F12: =IF(B12=1,VAR(F14:F1013),IF(AND(B12=2,B25=1,F6<>""),F6,IF(AND(B12=2,B25=2,F4<>"",F5<>""),F4*F5*(1-F5)/(F4-1),IF(AND(B12=3,B25=1,F7<>""),F7*F7/16,IF(AND(B12=3,B25=2),0.25,""))))) -> 36854 | G12: =SUM(G14:G15) -> 0 | H12: ←cuasivar muestra
D13: =IF(OR(B31="",B25="",B19="",B12="",B6=""),1,0) -> 0 | E13: =IF(B12=1,"Muestras de hasta 1000 datos","") ->  | F13: MUESTRA
D14: =IF(AND(B6=2,B12=1,B19=1),1,0) -> 0 | G14: =IF(AND($B$12=1,F14=""),1,0) -> 0
G15: =IF(AND($B$12=1,F15=""),1,0) -> 0
B19: 2
B25: 1
D28: =IF(B31=1,1.645,0) -> 1.645
D29: =IF(B31=2,1.96,0) -> 0
D30: =IF(B31=3,2,0) -> 0
B31: 1 | D31: =IF(B31=4,2.576,0) -> 0
D33: =SUM(D28:D31) -> 1.645
E1013: Esta hoja sirve para muestras de hasta 1000 datos

Sheet Muestreo Estratificado
A1: © TC3. José Alberto Hermoso Gutiérrez | G1: varianza para determinación de n= | H1: =IF(AND($B$16=1,$B$31=1),VAR(H16:H1015),IF(AND($B$16=1,$B$31=2),H13*(1-H13),IF(AND($B$16=2,$B$31=1,H8<>""),H8,IF(AND($B$16=2,$B$31=2,H7<>""),H7*(1-H7),IF(AND($B$16=3,$B$31=1,H9<>""),H9*H9/16,IF(AND($B$16=3,$B$31=2),0.25,"")))))) -> 2.5 | I1: =IF(AND($B$16=1,$B$31=1),VAR(I16:I1015),IF(AND($B$16=1,$B$31=2),I13*(1-I13),IF(AND($B$16=2,$B$31=1,I8<>""),I8,IF(AND($B$16=2,$B$31=2,I7<>""),I7*(1-I7),IF(AND($B$16=3,$B$31=1,I9<>""),I9*I9/16,IF(AND($B$16=3,$B$31=2),0.25,"")))))) -> 2.476190476 | J1: =IF($B$7<3,0,IF(AND($B$16=1,$B$31=1),VAR(J16:J1015),IF(AND($B$16=1,$B$31=2),J13*(1-J13),IF(AND($B$16=2,$B$31=1,J8<>""),J8,IF(AND($B$16=2,$B$31=2,J7<>""),J7*(1-J7),IF(AND($B$16=3,$B$31=1,J9<>""),J9*J9/16,IF(AND($B$16=3,$B$31=2),0.25,""))))))) -> 2 | K1: =IF($B$7<4,0,IF(AND($B$16=1,$B$31=1),VAR(K16:K1015),IF(AND($B$16=1,$B$31=2),K13*(1-K13),IF(AND($B$16=2,$B$31=1,K8<>""),K8,IF(AND($B$16=2,$B$31=2,K7<>""),K7*(1-K7),IF(AND($B$16=3,$B$31=1,K9<>""),K9*K9/16,IF(AND($B$16=3,$B$31=2),0.25,""))))))) -> 1.7 | L1: N↓ | M1: Ni/N
C2: =IF(OR(B7=0,B10=0,B16=0,B23=0,B31=0,B37=0),"COMPLETE EL FORMULARIO","") ->  | G2: =IF(AND(B16=3,B23=1),"Sin datos muestrales no es posible hacer una estimación",IF(L11>0,"Escriba sólo los datos solicitados","")) ->  | H2: =IF($B$10=1,H4,H5) -> 120 | I2: =IF($B$10=1,I4,I5) -> 240 | J2: =IF($B$7<3,0,IF($B$10=1,J4,J5)) -> 55 | K2: =IF($B$7<4,0,IF($B$10=1,K4,K5)) -> 90 | L2: =SUM(H2:K2) -> 505 | M2: =TRANSPOSE(H2:K2)/SUM(H2:K2) -> 0.2376237624
H3: ESTRATO 1 | I3: ESTRATO 2 | J3: ESTRATO 3 | K3: ESTRATO 4 | M3: 0.4752475248 | N3: POBLACION | O3: =IF($B$37=1,"*Nivel de confianza 90% (z=1,645)",IF($B$37=2,"*Nivel de confianza 95% (z=1,96)",IF($B$37=3,"*Nivel de confianza 95% (z=2)",IF($B$37=4,"*Nivel de confianza 99% (z=2,576)","")))) -> *Nivel de confianza 90% (z=1,645) | P3: ESTRATO 1 | Q3: ESTRATO 2 | R3: ESTRATO 3 | S3: ESTRATO 4
F4: =IF(B10=1,"Tamaño de la población:","") -> Tamaño de la población: | H4: 120 | I4: 240 | J4: 55 | K4: 90 | L4: =IF(OR(AND(F4="",$B$7=4,OR(H4<>"",I4<>"",J4<>"",K4<>"")),AND(F4="",$B$7=3,OR(H4<>"",I4<>"",J4<>"")),AND(F4="",OR(H4<>"",I4<>"")),AND(F4<>"",$B$7=4,OR(H4="",I4="",J4="",K4="")),AND(F4<>"",$B$7=3,OR(H4="",I4="",J4="")),AND(F4<>"",OR(H4="",I4=""))),1,"") ->  | M4: 0.1089108911 | O4: =IF(B31=1,"Media",IF(B31=2,"Proporción","")) -> Media
F5: =IF(B10=2,"Tamaño relativo de la población (%):","") ->  | M5: 0.1782178218 | N5: =MMULT(P5:S5,M2:M5) -> 5.139839698 | O5: Estimación: | P5: =H13 -> 3 | Q5: =I13 -> 6.142857143 | R5: =IF($B$7>2,J13,0) -> 5.333333333 | S5: =IF($B$7>3,K13,0) -> 5.2
F6: =IF(AND(B16=2,B23=1),"Tamaño de la muestra:","") ->  | M6: (Ni/N)^2 | N6: =MMULT(P6:S6,M7:M10) -> 0.1170255728 | O6: Varianza del estimador: | P6: =H14*H11/H12 -> 0.4791666667 | Q6: =I14*I11/I12 -> 0.3434240363 | R6: =IF($B$7>2,J14*J11/J12,0) -> 0.1858585859 | S6: =IF($B$7>3,K14*K11/K12,0) -> 0.3211111111
B7: 4 | D7: =IF(B7="","",B7) -> 4 | F7: =IF(AND(B16=2,B23=1,B31=1),"Media muestral:",IF(AND(B16=2,B31=2),"Proporción muestral:","")) ->  | L7: =IF(OR(AND(F7="",$B$7=4,OR(H7<>"",I7<>"",J7<>"",K7<>"")),AND(F7="",$B$7=3,OR(H7<>"",I7<>"",J7<>"")),AND(F7="",OR(H7<>"",I7<>"")),AND(F7<>"",$B$7=4,OR(H7="",I7="",J7="",K7="")),AND(F7<>"",$B$7=3,OR(H7="",I7="",J7="")),AND(F7<>"",OR(H7="",I7=""))),1,"") ->  | M7: =M2^2 -> 0.05646505245 | N7: =$E$41*SQRT(N6) -> 0.5627380614 | O7: *Cota del error de estimación: | P7: =$E$41*SQRT(P6) -> 1.138699688 | Q7: =$E$41*SQRT(Q6) -> 0.9640093505 | R7: =$E$41*SQRT(R6) -> 0.7091812038 | S7: =$E$41*SQRT(S6) -> 0.9321666667
F8: =IF(AND(B16=2,B31=1),"Cuasivarianza muestral:","") ->  | M8: =M3^2 -> 0.2258602098 | N8: =N5-N7 -> 4.577101637 | O8: *Intervalo de confianza (extremo inferior): | P8: =P5-P7 -> 1.861300312 | Q8: =Q5-Q7 -> 5.178847792 | R8: =R5-R7 -> 4.62415213 | S8: =S5-S7 -> 4.267833333
F9: =IF(AND(B16=3,B23>1,B31=1),"Rango de variación de la variable:","") ->  | M9: =M4^2 -> 0.0118615822 | N9: =N5+N7 -> 5.70257776 | O9: *Intervalo de confianza (extremo superior): | P9: =P5+P7 -> 4.138699688 | Q9: =Q5+Q7 -> 7.106866493 | R9: =R5+R7 -> 6.042514537 | S9: =S5+S7 -> 6.132166667
B10: 1 | F10: =IF(OR(B23=2,B23=3),"Coste de una observación","") ->  | M10: =M5^2 -> 0.031761592 | O10: Total
E11: =IF(OR(AND(F11="",G11<>""),AND(F11<>"",G11="",G12="")),1,0) -> 0 | F11: =IF(AND(B23>2,B31=2),"Cota del error de estimación para la proporción:",IF(AND(B23>2,B31=1),"Cota del error de estimación para la media:","")) ->  | H11: =IF($B$10=2,1,IF(AND($B$10=1,H4<>"",H12<>""),(H4-H12)/H4,"")) -> 0.9583333333 | I11: =IF($B$10=2,1,IF(AND($B$10=1,I4<>"",I12<>""),(I4-I12)/I4,"")) -> 0.9708333333 | J11: =IF($B$10=2,1,IF(AND($B$10=1,J4<>"",J12<>""),(J4-J12)/J4,"")) -> 0.8363636364 | K11: =IF($B$10=2,1,IF(AND($B$10=1,K4<>"",K12<>""),(K4-K12)/K4,"")) -> 0.9444444444 | L11: =SUM(L3:L10,E11:E13) -> 0 | M11: ←coef corr | N11: =SUM(H2:K2)*N5 -> 2595.619048 | O11: Estimación: | P11: =H2*P5 -> 360 | Q11: =I2*Q5 -> 1474.285714 | R11: =J2*R5 -> 293.3333333 | S11: =K2*S5 -> 468
E12: =IF(OR(AND(F12="",G12<>""),AND(F12<>"",G12="",G11="")),1,0) -> 0 | F12: =IF(AND(B23>2,B10=1),"y/o Cota del error de estimación para el total:","") ->  | H12: =IF($B$16=1,COUNT(H16:H1015),IF(AND($B$16=2,H6<>""),H6,"")) -> 5 | I12: =IF($B$16=1,COUNT(I16:I1015),IF(AND($B$16=2,I6<>""),I6,"")) -> 7 | J12: =IF($B$16=1,COUNT(J16:J1015),IF(AND($B$16=2,J6<>""),J6,"")) -> 9 | K12: =IF($B$16=1,COUNT(K16:K1015),IF(AND($B$16=2,K6<>""),K6,"")) -> 5 | L12: =SUM(E24,L13,L11) -> 0 | M12: ←n | N12: =(SUM(H2:K2)^2)*N6 -> 29844.44671 | O12: Varianza del estimador: | P12: =(H2^2)*P6 -> 6900 | Q12: =(I2^2)*Q6 -> 19781.22449 | R12: =(J2^2)*R6 -> 562.2222222 | S12: =(K2^2)*S6 -> 2601
E13: =IF(OR(AND(F13="",G13<>""),AND(F13<>"",G13="")),1,0) -> 0 | F13: =IF(B23=2,"Coste total máximo para la muestra:","") ->  | H13: =IF($B$16=1,AVERAGE(H16:H1015),IF(AND($B$16=2,H7<>""),H7,"")) -> 3 | I13: =IF($B$16=1,AVERAGE(I16:I1015),IF(AND($B$16=2,I7<>""),I7,"")) -> 6.142857143 | J13: =IF($B$16=1,AVERAGE(J16:J1015),IF(AND($B$16=2,J7<>""),J7,"")) -> 5.333333333 | K13: =IF($B$16=1,AVERAGE(K16:K1015),IF(AND($B$16=2,K7<>""),K7,"")) -> 5.2 | L13: =SUM(L16:L17) -> 0 | M13: ←media p | N13: =$E$41*SQRT(N12) -> 284.182721 | O13: *Cota del error de estimación: | P13: =$E$41*SQRT(P12) -> 136.6439625 | Q13: =$E$41*SQRT(Q12) -> 231.3622441 | R13: =$E$41*SQRT(R12) -> 39.00496621 | S13: =$E$41*SQRT(S12) -> 83.895
H14: =IF($B$16=1,VAR(H16:H1015),IF(AND($B$16=2,$B$31=1,H8<>""),H8,IF(AND($B$16=2,$B$31=2,H6<>"",H7<>""),H6*H7*(1-H7)/(H6-1),IF(AND($B$16=3,$B$31=1,H9<>""),H9*H9/16,IF(AND($B$16=3,$B$31=2),0.25,""))))) -> 2.5 | I14: =IF($B$16=1,VAR(I16:I1015),IF(AND($B$16=2,$B$31=1,I8<>""),I8,IF(AND($B$16=2,$B$31=2,I6<>"",I7<>""),I6*I7*(1-I7)/(I6-1),IF(AND($B$16=3,$B$31=1,I9<>""),I9*I9/16,IF(AND($B$16=3,$B$31=2),0.25,""))))) -> 2.476190476 | J14: =IF($B$16=1,VAR(J16:J1015),IF(AND($B$16=2,$B$31=1,J8<>""),J8,IF(AND($B$16=2,$B$31=2,J6<>"",J7<>""),J6*J7*(1-J7)/(J6-1),IF(AND($B$16=3,$B$31=1,J9<>""),J9*J9/16,IF(AND($B$16=3,$B$31=2),0.25,""))))) -> 2 | K14: =IF($B$16=1,VAR(K16:K1015),IF(AND($B$16=2,$B$31=1,K8<>""),K8,IF(AND($B$16=2,$B$31=2,K6<>"",K7<>""),K6*K7*(1-K7)/(K6-1),IF(AND($B$16=3,$B$31=1,K9<>""),K9*K9/16,IF(AND($B$16=3,$B$31=2),0.25,""))))) -> 1.7 | M14: ←var | N14: =N11-N13 -> 2311.436327 | O14: *Intervalo de confianza (extremo inferior): | P14: =P11-P13 -> 223.3560375 | Q14: =Q11-Q13 -> 1242.92347 | R14: =R11-R13 -> 254.3283671 | S14: =S11-S13 -> 384.105
G15: =IF(B16=1,"Muestras de hasta 1000 datos","") -> Muestras de hasta 1000 datos | H15: MUESTRA 1 | I15: MUESTRA 2 | J15: MUESTRA 3 | K15: MUESTRA 4 | N15: =N11+N13 -> 2879.801769 | O15: *Intervalo de confianza (extremo superior): | P15: =P11+P13 -> 496.6439625 | Q15: =Q11+Q13 -> 1705.647958 | R15: =R11+R13 -> 332.3382995 | S15: =S11+S13 -> 551.895
B16: 1 | G16: =IF(L13>0,"Complete los datos de las muestras solicitadas","") ->  | H16: 1 | I16: 5 | J16: 7 | K16: 7 | L16: =IF(OR(AND($B$16=1,$B$7=4,OR(H16="",I16="",J16="",K16="")),AND($B$16=1,$B$7=3,OR(H16="",I16="",J16="")),AND($B$16=1,OR(H16="",I16=""))),1,0) -> 0 | M16: Ni | N16: POBLACION | O16: =IF($B$37=1,"*Nivel de confianza 90% (z=1,645). Coste fijo",IF($B$37=2,"*Nivel de confianza 95% (z=1,96). Coste fijo",IF($B$37=3,"*Nivel de confianza 95% (z=2). Coste fijo",IF($B$37=4,"*Nivel de confianza 99% (z=2,576). Coste fijo","")))) -> *Nivel de confianza 90% (z=1,645). Coste fijo | P16: ESTRATO 1 | Q16: ESTRATO 2 | R16: ESTRATO 3 | S16: ESTRATO 4
F17: B sobre la media= | H17: 2 | I17: 4 | J17: 5 | K17: 4 | L17: =IF(OR(AND($B$16=1,$B$7=4,OR(H17="",I17="",J17="",K17="")),AND($B$16=1,$B$7=3,OR(H17="",I17="",J17="")),AND($B$16=1,OR(H17="",I17=""))),1,0) -> 0 | M17: =TRANSPOSE(H2:K2) -> 120 | O17: Asignación Óptima: Coeficientes de asignación | P17: =P29/SUM($P29:$S29) ->  | Q17: =Q29/SUM($P29:$S29) ->  | R17: =R29/SUM($P29:$S29) ->  | S17: =S29/SUM($P29:$S29) -> 
F18: =IF(AND(G11<>"",G12=""),G11,IF(AND(G11="",G12<>"",L2<>""),G12/L2,IF(AND(G11<>"",G12<>"",L2<>""),MIN(G11,(G12/L2)),""))) ->  | H18: 3 | I18: 8 | J18: 8 | K18: 6 | M18: 240 | N18: =G13*SUM(P29:S29)/SUM(P28:S28) ->  | O18: Tamaño de la muestra | P18: =$N18*P17 ->  | Q18: =$N18*Q17 ->  | R18: =$N18*R17 ->  | S18: =$N18*S17 -> 
E19: =IF(AND(B16=3,B23=1),1,0) -> 0 | F19: D= | H19: 4 | I19: 5 | J19: 5 | K19: 5 | M19: 55 | N19: POBLACION | O19: =IF($B$37=1,"*Nivel de confianza 90% (z=1,645). Error fijo",IF($B$37=2,"*Nivel de confianza 95% (z=1,96). Error fijo",IF($B$37=3,"*Nivel de confianza 95% (z=2). Error fijo",IF($B$37=4,"*Nivel de confianza 99% (z=2,576). Error fijo","")))) -> *Nivel de confianza 90% (z=1,645). Error fijo | P19: ESTRATO 1 | Q19: ESTRATO 2 | R19: ESTRATO 3 | S19: ESTRATO 4
F20: =IF(OR(F18="",$E$41=""),"",(F18/$E$41)^2) ->  | H20: 5 | I20: 6 | J20: 4 | K20: 4 | M20: 90 | O20: Asig. Proporcional: Coeficientes de asignación | P20: =H2/SUM($H2:$K2) -> 0.2376237624 | Q20: =I2/SUM($H2:$K2) -> 0.4752475248 | R20: =J2/SUM($H2:$K2) -> 0.1089108911 | S20: =K2/SUM($H2:$K2) -> 0.1782178218
E21: =IF(OR(B37="",B31="",B23="",B16="",B10="",B7=""),1,0) -> 0 | I21: 7 | J21: 6 | N21: =IF(B10=1,SUM(P26:S26)/((L2*F20)+(SUM(P26:S26)/L2)),SUM(P26:S26)/(100*F20)) ->  | O21: Tamaño de la muestra | P21: =$N21*P20 ->  | Q21: =$N21*Q20 ->  | R21: =$N21*R20 ->  | S21: =$N21*S20 -> 
I22: 8 | J22: 5 | O22: Asig. Neyman: Coeficientes de asignación | P22: =P27/SUM($P27:$S27) -> 0.2488264693 | Q22: =Q27/SUM($P27:$S27) -> 0.4952774934 | R22: =R27/SUM($P27:$S27) -> 0.102005365 | S22: =S27/SUM($P27:$S27) -> 0.1538906723
B23: 1 | J23: 4 | N23: =IF(B10=1,(SUM(P27:S27)^2)/((L2*L2*F20)+SUM(P26:S26)),(SUM(P27:S27)^2)/(10000*F20)) ->  | O23: Tamaño de la muestra | P23: =$N23*P22 ->  | Q23: =$N23*Q22 ->  | R23: =$N23*R22 ->  | S23: =$N23*S22 -> 
E24: =SUM(E14:E23) -> 0 | J24: 4 | O24: Asignación Óptima: Coeficientes de asignación | P24: =P17 ->  | Q24: =Q17 ->  | R24: =R17 ->  | S24: =S17 -> 
N25: =IF(B10=1,SUM(P28:S28)*SUM(P29:S29)/((L2*L2*F20)+SUM(P26:S26)),SUM(P28:S28)*SUM(P29:S29)/(10000*F20)) ->  | O25: Tamaño de la muestra | P25: =$N25*P24 ->  | Q25: =$N25*Q24 ->  | R25: =$N25*R24 ->  | S25: =$N25*S24 -> 
O26: Ni*Si^2 | P26: =H2*H1 -> 300 | Q26: =I2*I1 -> 594.2857143 | R26: =J2*J1 -> 110 | S26: =K2*K1 -> 153
E27: =IF(OR(B10=2,B23<>1),1,0) -> 0 | O27: Ni*Si | P27: =H2*SQRT(H1) -> 189.7366596 | Q27: =I2*SQRT(I1) -> 377.6619804 | R27: =J2*SQRT(J1) -> 77.78174593 | S27: =K2*SQRT(K1) -> 117.3456433
O28: Ni*Si*raiz(Ci) | P28: =IF(H10>0,P27*SQRT(H10),0) -> 0 | Q28: =IF(I10>0,Q27*SQRT(I10),0) -> 0 | R28: =IF(J10>0,R27*SQRT(J10),0) -> 0 | S28: =IF(K10>0,S27*SQRT(K10),0) -> 0
O29: Ni*Si/raiz(Ci) | P29: =IF(H10>0,P27/SQRT(H10),0) -> 0 | Q29: =IF(I10>0,Q27/SQRT(I10),0) -> 0 | R29: =IF(J10>0,R27/SQRT(J10),0) -> 0 | S29: =IF(K10>0,S27/SQRT(K10),0) -> 0
B31: 1
E36: =IF(B37=1,1.645,0) -> 1.645
B37: 1 | E37: =IF(B37=2,1.96,0) -> 0
E38: =IF(B37=3,2,0) -> 0
E39: =IF(B37=4,2.576,0) -> 0
E41: =SUM(E36:E39) -> 1.645
G1015: Esta hoja sirve para muestras de hasta 1000 datos

Sheet Muestreo Información Auxiliar
A1: © TC3. José Alberto Hermoso Gutiérrez | H1: =IF(OR(B7="",B12="",B22="",B29=""),1,0) -> 0 | M1: pendiente= | N1: =SLOPE(G11:G1010,F11:F1010) -> 0.067764804
C2: =IF(OR(B7=0,B12=0,B22=0,B29=0),"COMPLETE EL FORMULARIO","") ->  | G2: =IF(H2>0,"Se necesita información auxiliar poblacional para la estimación",IF(H9>0,"Escriba sólo los datos solicitados","")) ->  | H2: =IF(AND(B12=2,B22=1),1,0) -> 0 | L2: Varianza residual= | M2: =SUM(I11:I1010)/(D15-1) -> 1.632928144 | N2: =STEYX(G11:G1010,F11:F1010)^2 -> 1.865095913 | O2: =VAR(J11:J1010) -> 209.8
D3: =IF(OR(B7=1,B12>2,B22>1),1,0) -> 1 | E3: =IF(B7=1,"Tamaño de la población:","") -> Tamaño de la población: | G3: 7000 | H3: =IF(OR(AND(E3="",G3<>""),AND(E3<>"",G3="")),1,0) -> 0 | L3: =IF(B29=1,"*Nivel de confianza 90% (z=1,645)",IF(B29=2,"*Nivel de confianza 95% (z=1,96)",IF(B29=3,"*Nivel de confianza 95% (z=2)",IF(B29=4,"*Nivel de confianza 99% (z=2,576)","")))) -> *Nivel de confianza 95% (z=2) | M3: RAZÓN | N3: REGRESIÓN | O3: DIFERENCIA
E4: =IF(B22=2,"Media poblacional de la variable auxiliar X:","") ->  | H4: =IF(OR(AND(E4="",G4<>""),AND(E4<>"",G4="")),1,0) -> 0 | L4: =IF(B12=1,"Razón",IF(B12=2,"Media","")) -> Media
E5: =IF(B22=3,"Total poblacional de la variable auxiliar X:","") -> Total poblacional de la variable auxiliar X: | G5: 1000000 | H5: =IF(OR(AND(E5="",G5<>""),AND(E5<>"",G5="")),1,0) -> 0 | K5: =SUM(G11:G1010)/SUM(F11:F1010) -> 0.09900990099 | L5: Estimación | M5: =IF(B22=2,K5*G4,IF(AND(B22=3,B7=1),K5*G5/G3,"")) -> 14.14427157 | N5: =IF(B22=2,AVERAGE(G11:G1010)+(N1*(G4-AVERAGE(F11:F1010))),IF(AND(B22=3,B7=1),AVERAGE(G11:G1010)+(N1*((G5/G3)-AVERAGE(F11:F1010))),"")) -> 14.098743 | O5: =IF(B22=2,AVERAGE(G11:G1010)+G4-AVERAGE(F11:F1010),IF(AND(B22=3,B7=1),AVERAGE(G11:G1010)+(G5/G3)-AVERAGE(F11:F1010),"")) -> 15.45714286
E6: =IF(B12=3,"Cota del error de estimación para la razón:","") ->  | H6: =IF(OR(AND(E6="",G6<>""),AND(E6<>"",G6="")),1,0) -> 0 | K6: =D12*M2/((D11^2)*D15) -> 1.599126532e-05 | L6: Varianza del estimador | M6: =IF(B22=2,G4*G4*K6,IF(AND(B22=3,B7=1),((G5/G3)^2)*K6,"")) -> 0.3263523534 | N6: =$D$12*N2/COUNT($F$11:$F$1010) -> 0.3727527404 | O6: =$D$12*O2/COUNT($F$11:$F$1010) -> 41.93002857
B7: 1 | E7: =IF(B12=4,"Cota del error de estimación para la media:","") ->  | H7: =IF(OR(AND(E7="",G7<>""),AND(E7<>"",G7="",G8="")),1,0) -> 0 | K7: =$D$32*SQRT(K6) -> 0.007997816031 | L7: *Cota del error de estimación | M7: =IF(M6="","",$D$32*SQRT(M6)) -> 1.142545147 | N7: =$D$32*SQRT(N6) -> 1.221069597 | O7: =$D$32*SQRT(O6) -> 12.95068007
E8: =IF(AND(B7=1,B12=4),"y/o Cota del error de estimación para el total:","") ->  | H8: =IF(OR(AND(E8="",G8<>""),AND(E8<>"",G8="",G7="")),1,0) -> 0 | K8: =K5-K7 -> 0.09101208496 | L8: *Intervalo de confianza (extremo inferior) | M8: =IF(M7="","",M5-M7) -> 13.00172642 | N8: =IF(N5="","",N5-N7) -> 12.8776734 | O8: =IF(O5="","",O5-O7) -> 2.506462787
E9: =IF(H15>0,"Complete los datos de la muestra","") ->  | H9: =SUM(H3:H8) -> 0 | K9: =K5+K7 -> 0.107007717 | L9: *Intervalo de confianza (extremo superior) | M9: =IF(M7="","",M5+M7) -> 15.28681672 | N9: =IF(N5="","",N5+N7) -> 15.3198126 | O9: =IF(O5="","",O5+O7) -> 28.40782293
E10: Muestras de hasta 1000 datos | F10: MUESTRA X | G10: MUESTRA Y | H10: =H9+H15+H1+H2 -> 0 | I10: (y-rx)^2 | J10: d=y-x | L10: Total
D11: =IF(G4<>"",G4,IF(AND(G5<>"",G3<>""),G5/G3,AVERAGE(F11:F1010))) -> 142.8571429 | E11: media X (Poblacional o muestral) | F11: 120 | G11: 12 | H11: =IF(OR(F11="",G11=""),1,0) -> 0 | I11: =(G11-($K$5*F11))^2 -> 0.01411626311 | J11: =IF(F11="","",G11-F11) -> -108 | L11: Estimación | M11: =IF($G$5<>"",K5*$G$5,IF(AND($G$4<>"",$B$7=1),K5*$G$4*$G$3,"")) -> 99009.90099 | N11: =IF($B$7=1,$G$3*N5,"") -> 98691.201 | O11: =IF($B$7=1,$G$3*O5,"") -> 108200
B12: 2 | D12: =IF(B7=2,1,IF(AND(B7=1,G3<>"",D15<>""),(G3-D15)/G3,"")) -> 0.9992857143 | E12: coef. Corrector | F12: 152 | G12: 14 | H12: =IF(OR(F12="",G12=""),1,0) -> 0 | I12: =(G12-($K$5*F12))^2 -> 1.101460641 | J12: =IF(F12="","",G12-F12) -> -138 | L12: Varianza del estimador | M12: =IF($G$5<>"",K6*($G$5^2),IF(AND($G$4<>"",$B$7=1),K6*(($G$4*$G$3)^2),"")) -> 15991265.32 | N12: =IF($B$7=1,$G$3*$G$3*N6,"") -> 18264884.28 | O12: =IF($B$7=1,$G$3*$G$3*O6,"") -> 2054571400
D13: =IF(B12=3,G6*D11,IF(AND(B12=4,G7<>"",G8=""),G7,IF(AND(B12=4,G7="",G8<>"",G3<>""),G8/G3,IF(AND(B12=4,G7<>"",G8<>"",G3<>""),MIN(G7,(G8/G3)),"")))) ->  | E13: B mínimo para la media | F13: 140 | G13: 16 | H13: =IF(OR(F13="",G13=""),1,0) -> 0 | I13: 4.573669248 | J13: -124 | L13: *Cota del error de estimación | M13: =IF(M12="","",$D$32*SQRT(M12)) -> 7997.816031 | N13: =IF(N12="","",$D$32*SQRT(N12)) -> 8547.487181 | O13: =IF(O12="","",$D$32*SQRT(O12)) -> 90654.76049
D14: =(D13/D32)^2 ->  | E14: D para hallar n | F14: 135 | G14: 13 | H14: =IF(COUNT(F11:F1010)=COUNT(G11:G1010),0,1) -> 0 | I14: 0.1342025292 | J14: -122 | L14: *Intervalo de confianza (extremo inferior) | M14: =IF(M13="","",M11-M13) -> 91012.08496 | N14: =IF(N13="","",N11-N13) -> 90143.71382 | O14: =IF(O13="","",O11-O13) -> 17545.23951
D15: =COUNT(F11:F1010) -> 5 | E15: tamaño muestral | F15: 160 | G15: 15 | H15: =SUM(H11:H14) -> 0 | I15: 0.7082638957 | J15: -145 | L15: *Intervalo de confianza (extremo superior) | M15: =IF(M13="","",M11+M13) -> 107007.717 | N15: =IF(N13="","",N11+N13) -> 107238.6882 | O15: =IF(O13="","",O11+O13) -> 198854.7605
D16: =IF(AND(B7=2,B22<>3),1,0) -> 0 | E16: est. total en pobl inf con total pobl de X | I16: 0 | L16: =IF(B29=1,"*Nivel de confianza 90% (z=1,645)",IF(B29=2,"*Nivel de confianza 95% (z=1,96)",IF(B29=3,"*Nivel de confianza 95% (z=2)",IF(B29=4,"*Nivel de confianza 99% (z=2,576)","")))) -> *Nivel de confianza 95% (z=2) | M16: RAZÓN | N16: REGRESIÓN | O16: DIFERENCIA
D17: =IF(AND(B7=2,B22=3),1,0) -> 0 | I17: 0 | K17: =IF(B7=1,G3*M2/((G3*D14)+M2),M2/D14) ->  | L17: Tamaño muestral para la cota de error | M17: =IF($B$7=1,$G$3*M2/(($G$3*$D$14)+M2),M2/$D$14) ->  | N17: =IF($B$7=1,$G$3*N2/(($G$3*$D$14)+N2),N2/$D$14) ->  | O17: =IF($B$7=1,$G$3*O2/(($G$3*$D$14)+O2),O2/$D$14) -> 
I18: 0
I19: 0
I20: 0
I21: 0
B22: 3 | I22: 0
I23: 0
I24: 0
I25: 0
I26: 0
D27: =IF(B29=1,1.645,0) -> 0 | I27: 0
D28: =IF(B29=2,1.96,0) -> 0 | I28: 0
B29: 3 | D29: =IF(B29=3,2,0) -> 2 | I29: 0
D30: =IF(B29=4,2.576,0) -> 0 | I30: 0
I31: 0
D32: =SUM(D27:D30) -> 2 | I32: 0
I33: 0
I34: 0
I35: 0
I36: 0
I37: 0
I38: 0
I39: 0
I40: 0
I41: 0
I42: 0
I43: 0
I44: 0
I45: 0
I46: 0
I47: 0
I48: 0
I49: 0
I50: 0
I51: 0
I52: 0
I53: 0
I54: 0
I55: 0
I56: 0
I57: 0
I58: 0
I59: 0
I60: 0
I61: 0
I62: 0
I63: 0
I64: 0
I65: 0
I66: 0
I67: 0
I68: 0
I69: 0
I70: 0
I71: 0
I72: 0
I73: 0
I74: 0
I75: 0
I76: =(G76-($K$5*F76))^2 -> 0 | J76: =IF(F76="","",G76-F76) -> 
I77: 0
I78: 0
I79: 0
I80: 0
I81: 0
I82: 0
I83: 0
I84: 0
I85: 0
I86: 0
I87: 0
I88: 0
I89: 0
I90: 0
I91: 0
I92: 0
I93: 0
I94: 0
I95: 0
I96: 0
I97: 0
I98: 0
I99: 0
I100: 0
I101: 0
I102: 0
I103: 0
I104: 0
I105: 0
I106: 0
I107: 0
I108: 0
I109: 0
I110: 0
I111: 0
I112: 0
I113: 0
I114: 0
I115: 0
I116: 0
I117: 0
I118: 0
I119: 0
I120: 0
I121: 0
I122: 0
I123: 0
I124: 0
I125: 0
I126: 0
I127: 0
I128: 0
I129: 0
I130: 0
I131: 0
I132: 0
I133: 0
I134: 0
I135: 0
I136: 0
I137: 0
I138: 0
I139: 0
I140: =(G140-($K$5*F140))^2 -> 0 | J140: =IF(F140="","",G140-F140) -> 
I141: 0
I142: 0
I143: 0
I144: 0
I145: 0
I146: 0
I147: 0
I148: 0
I149: 0
I150: 0
I151: 0
I152: 0
I153: 0
I154: 0
I155: 0
I156: 0
I157: 0
I158: 0
I159: 0
I160: 0
I161: 0
I162: 0
I163: 0
I164: 0
I165: 0
I166: 0
I167: 0
I168: 0
I169: 0
I170: 0
I171: 0
I172: 0
I173: 0
I174: 0
I175: 0
I176: 0
I177: 0
I178: 0
I179: 0
I180: 0
I181: 0
I182: 0
I183: 0
I184: 0
I185: 0
I186: 0
I187: 0
I188: 0
I189: 0
I190: 0
I191: 0
I192: 0
I193: 0
I194: 0
I195: 0
I196: 0
I197: 0
I198: 0
I199: 0
I200: 0
... 810 more rows

Sheet Muestreo por Conglomerados
A1: © TC3. José Alberto Hermoso Gutiérrez
C2: =IF(OR(B7=0,B14=0,B21=0),"COMPLETE EL FORMULARIO","") ->  | G2: =IF(H7>0,"Escriba sólo los datos solicitados","") ->  | H2: =IF(OR(B7="",B14="",B21=""),1,0) -> 0 | K2: Varianza residual= | L2: =SUM(I9:I1008)/(D15-1) -> 13889.07376
D3: =IF(OR(B7=1,B11=TRUE,B14=2),1,0) -> 1 | E3: =IF(B11,"Tamaño de la población (M):","") -> Tamaño de la población (M): | G3: 4000 | H3: =IF(OR(AND(E3="",G3<>""),AND(E3<>"",G3="")),1,0) -> 0 | K3: =IF(B21=1,"*Nivel de confianza 90% (z=1,645)",IF(B21=2,"*Nivel de confianza 95% (z=1,96)",IF(B21=3,"*Nivel de confianza 95% (z=2)",IF(B21=4,"*Nivel de confianza 99% (z=2,576)","")))) -> *Nivel de confianza 90% (z=1,645)
E4: =IF(B7=1,"Número de conglomerados (N):","") -> Número de conglomerados (N): | G4: 100 | H4: =IF(OR(AND(E4="",G4<>""),AND(E4<>"",G4="")),1,0) -> 0 | K4: Media o proporción
E5: =IF(B14=2,"Cota del error de estimación para la media (ó p):","") ->  | H5: =IF(OR(AND(E5="",G5<>""),AND(E5<>"",G5="",G6="")),1,0) -> 0 | K5: Estimación | L5: =SUM(G9:G1008)/SUM(F9:F1008) -> 14.23954373
E6: =IF(AND(OR(B7=1,B11),B14=2),"y/o Cota del error de estimación para el total:","") ->  | H6: =IF(OR(AND(E6="",G6<>""),AND(E6<>"",G6="",G5="")),1,0) -> 0 | K6: Varianza del estimador | L6: =D10*L2/((D9^2)*D15) -> 1.359971806
B7: 1 | E7: =IF(AND(C2="",H13>0),"Complete los datos de la muestra","") ->  | F7: m | G7: y | H7: =SUM(H3:H6) -> 0 | K7: *Cota del error de estimación | L7: =IF(L6="","",$D$24*SQRT(L6)) -> 1.918363288
E8: Muestras de hasta 1000 datos | F8: TAMAÑO | G8: TOTAL | H8: =H7+H13+H2 -> 0 | I8: (y-med(y)*m)^2 | K8: *Intervalo de confianza (extremo inferior) | L8: =IF(L7="","",L5-L7) -> 12.32118044
D9: =IF(AND(G4<>"",G3<>""),G3/G4,AVERAGE(F9:F1008)) -> 40 | E9: media M (Poblacional o muestral) | F9: 35 | G9: 523 | H9: =IF(OR(F9="",G9=""),1,0) -> 0 | I9: =(G9-($L$5*F9))^2 -> 605.9459584 | K9: *Intervalo de confianza (extremo superior) | L9: =IF(L7="","",L5+L7) -> 16.15790701
D10: =IF(B7=2,1,IF(AND(B7=1,G4<>"",D15<>""),(G4-D15)/G4,"")) -> 0.94 | E10: coef. Corrector | F10: 36 | G10: 645 | H10: =IF(OR(F10="",G10=""),1,0) -> 0 | I10: =(G10-($L$5*F10))^2 -> 17523.51812 | J10: =IF(B7=1,"M.A.S.","") -> M.A.S. | K10: Total | L10: =IF(G3<>"","M Conocido","") -> M Conocido
B11: TRUE | D11: =IF(AND(G5<>"",G6=""),G5,IF(AND(G5="",G6<>"",G3<>""),G6/G3,IF(AND(G5="",G6<>"",G3="",G4<>""),G6/(G4*D9),IF(AND(G5<>"",G6<>"",G3<>""),MIN(G5,(G6/G3)),IF(AND(G5<>"",G6<>"",G3="",G4<>""),MIN(G5,(G6/(G4*D9))),0))))) -> 0 | E11: B mínimo para la media (conglm) | F11: 42 | G11: 723 | I11: 15609.79458 | J11: =IF(B7=1,G4*AVERAGE(G9:G1008),"") -> 62416.66667 | K11: Estimación | L11: =IF(G3<>"",G3*L5,"") -> 56958.1749
D12: =(D11*D9/D24)^2 -> 0 | E12: D para hallar n (conglomerados) | F12: 45 | G12: 469 | H12: =IF(COUNT(F9:F1008)=COUNT(G9:G1008),0,1) -> 0 | I12: 29508.18552 | J12: =IF(B7=1,G4*(G4-D15)*VAR(G9:G1008)/D15,"") -> 17347647.78 | K12: Varianza del estimador | L12: =IF(G3<>"",G3*G3*L6,"") -> 21759548.9
D13: =IF(AND(B7=1,G6<>""),(G6/(D24*G4))^2,0) -> 0 | E13: D para hallar n (total MAS) | F13: 50 | G13: 665 | H13: =SUM(H9:H12) -> 0 | I13: 2206.856034 | J13: =IF(J12="","",$D$24*SQRT(J12)) -> 6851.508489 | K13: *Cota del error de estimación | L13: =IF(L12="","",$D$24*SQRT(L12)) -> 7673.453154
B14: 1 | F14: 55 | G14: 720 | I14: 3991.068615 | J14: =IF(J13="","",J11-J13) -> 55565.15818 | K14: *Intervalo de confianza (extremo inferior) | L14: =IF(L13="","",L11-L13) -> 49284.72175
D15: =COUNT(F9:F1008) -> 6 | E15: tamaño muestral | I15: 0 | J15: =IF(J13="","",J11+J13) -> 69268.17516 | K15: *Intervalo de confianza (extremo superior) | L15: =IF(L13="","",L11+L13) -> 64631.62806
I16: 0 | J16: M.A.S. | K16: =IF(B21=1,"*Nivel de confianza 90% (z=1,645)",IF(B21=2,"*Nivel de confianza 95% (z=1,96)",IF(B21=3,"*Nivel de confianza 95% (z=2)",IF(B21=4,"*Nivel de confianza 99% (z=2,576)","")))) -> *Nivel de confianza 90% (z=1,645) | L16: CONGLOMERADOS
D17: =IF(AND(B11=FALSE,B7=2),1,0) -> 0 | E17: No se puede estimar el total | I17: 0 | J17: =IF(D13=0,"",G4*VAR(G9:G1008)/((G4*D13)+VAR(G9:G1008))) ->  | K17: Tamaño muestral para la cota de error | L17: =IF(D12=0,"",IF($B$7=1,$G$4*L2/(($G$4*$D$12)+L2),L2/$D$12)) -> 
I18: 0
D19: =IF(B21=1,1.645,0) -> 1.645 | I19: 0
D20: =IF(B21=2,1.96,0) -> 0 | I20: 0
B21: 1 | D21: =IF(B21=3,2,0) -> 0 | I21: 0
D22: =IF(B21=4,2.576,0) -> 0 | I22: 0
I23: 0
D24: =SUM(D19:D22) -> 1.645 | I24: 0
I25: 0
I26: 0
I27: 0
I28: 0
I29: 0
I30: 0
I31: 0
I32: 0
I33: 0
I34: 0
I35: 0
I36: 0
I37: 0
I38: 0
I39: 0
I40: 0
I41: 0
I42: 0
I43: 0
I44: 0
I45: 0
I46: 0
I47: 0
I48: 0
I49: 0
I50: 0
I51: 0
I52: 0
I53: 0
I54: 0
I55: 0
I56: 0
I57: 0
I58: 0
I59: 0
I60: 0
I61: 0
I62: 0
I63: 0
I64: 0
I65: 0
I66: 0
I67: 0
I68: 0
I69: 0
I70: 0
I71: 0
I72: 0
I73: 0
I74: =(G74-($L$5*F74))^2 -> 0
I75: 0
I76: 0
I77: 0
I78: 0
I79: 0
I80: 0
I81: 0
I82: 0
I83: 0
I84: 0
I85: 0
I86: 0
I87: 0
I88: 0
I89: 0
I90: 0
I91: 0
I92: 0
I93: 0
I94: 0
I95: 0
I96: 0
I97: 0
I98: 0
I99: 0
I100: 0
I101: 0
I102: 0
I103: 0
I104: 0
I105: 0
I106: 0
I107: 0
I108: 0
I109: 0
I110: 0
I111: 0
I112: 0
I113: 0
I114: 0
I115: 0
I116: 0
I117: 0
I118: 0
I119: 0
I120: 0
I121: 0
I122: 0
I123: 0
I124: 0
I125: 0
I126: 0
I127: 0
I128: 0
I129: 0
I130: 0
I131: 0
I132: 0
I133: 0
I134: 0
I135: 0
I136: 0
I137: 0
I138: =(G138-($L$5*F138))^2 -> 0
I139: 0
I140: 0
I141: 0
I142: 0
I143: 0
I144: 0
I145: 0
I146: 0
I147: 0
I148: 0
I149: 0
I150: 0
I151: 0
I152: 0
I153: 0
I154: 0
I155: 0
I156: 0
I157: 0
I158: 0
I159: 0
I160: 0
I161: 0
I162: 0
I163: 0
I164: 0
I165: 0
I166: 0
I167: 0
I168: 0
I169: 0
I170: 0
I171: 0
I172: 0
I173: 0
I174: 0
I175: 0
I176: 0
I177: 0
I178: 0
I179: 0
I180: 0
I181: 0
I182: 0
I183: 0
I184: 0
I185: 0
I186: 0
I187: 0
I188: 0
I189: 0
I190: 0
I191: 0
I192: 0
I193: 0
I194: 0
I195: 0
I196: 0
I197: 0
I198: 0
I199: 0
I200: 0
... 808 more rows

Sheet Estimacion Tamaño Población
A1: © TC3. José Alberto Hermoso Gutiérrez
C2: =IF(OR(B7="",B17=""),"COMPLETE EL FORMULARIO","") ->  | F2: =IF(G11>0,"Escriba sólo los datos solicitados","") ->  | G2: =IF(OR(B7="",B17=""),1,0) -> 0
E3: =IF(OR(B7=1,B7=2),"Tamaño de la primera muestra marcada (t):","") ->  | G3: =IF(OR(AND(E3="",F3<>""),AND(E3<>"",F3="")),1,0) -> 0 | H3: =IF(B17=1,"*Nivel de confianza 90% (z=1,645)",IF(B17=2,"*Nivel de confianza 95% (z=1,96)",IF(B17=3,"*Nivel de confianza 95% (z=2)",IF(B17=4,"*Nivel de confianza 99% (z=2,576)","NIVEL DE CONFIANZA")))) -> *Nivel de confianza 99% (z=2,576)
E4: =IF(OR(B7=1,B7=2),"Tamaño de la segunda muestra (n):","") ->  | G4: 0 | H4: Tamaño de la población
E5: =IF(OR(B7=1,B7=2),"Elementos marcados en la segunda muestra (s):","") ->  | G5: 0 | H5: Estimación | I5: =IF(OR(B7=1,B7=2),F4*F3/F5,F6*I11) -> 90
E6: =IF(OR(B7=3,B7=4),"Area total (A):","") -> Area total (A): | F6: 1000 | G6: 0 | H6: Varianza del estimador | I6: =IF(B7=1,F3*F3*F4*(F4-F5)/(F5^3),IF(B7=2,F3*F3*F4*(F4-F5)/((F5^2)*(F5+1)),F6*F6*I12)) -> 180
B7: 3 | E7: =IF(OR(B7=4,B7=3),"Area de cada cuadro (a):","") -> Area de cada cuadro (a): | F7: 10 | G7: 0 | H7: *Cota del error de estimación | I7: =D20*SQRT(I6) -> 34.56066666
E8: =IF(OR(B7=4,B7=3),"Número de cuadros en la muestra (n):","") -> Número de cuadros en la muestra (n): | F8: 50 | G8: 0 | H8: *Intervalo de confianza (extremo inferior) | I8: =I5-I7 -> 55.43933334
E9: =IF(B7=3,"Total de elementos en la muestra (m):","") -> Total de elementos en la muestra (m): | F9: 45 | G9: 0 | H9: *Intervalo de confianza (extremo superior) | I9: =I5+I7 -> 124.5606667
E10: =IF(B7=4,"Cuadros no cargados en la muestra (y):","") ->  | G10: 0 | H10: Densidad de población
G11: =SUM(G2:G10) -> 0 | H11: Estimación | I11: =IF(B7=3,F9/(F8*F7),IF(B7=4,-LN(F10/F8)/F7,"")) -> 0.09
H12: Varianza del estimador | I12: =IF(B7=3,I11/(F7*F8),IF(B7=4,(F8-F10)/(F7*F7*F8*F10),"")) -> 0.00018
H13: *Cota del error de estimación | I13: =D20*SQRT(I12) -> 0.03456066666
H14: *Intervalo de confianza (extremo inferior) | I14: =I11-I13 -> 0.05543933334
D15: =IF(B17=1,1.645,0) -> 0 | H15: *Intervalo de confianza (extremo superior) | I15: =I11+I13 -> 0.1245606667
D16: =IF(B17=2,1.96,0) -> 0
B17: 4 | D17: =IF(B17=3,2,0) -> 0
D18: =IF(B17=4,2.576,0) -> 2.576
D20: =SUM(D15:D18) -> 2.576
